fUST/lending_fUST_20260104
["ID","MTS","AMOUNT","RATE_DAILY","PERIOD"]
[400386163,1767485441196,-1000.0,0.00014247,2]
[400386164,1767485441206,-1069.01197872,0.00014247,2]
[400386166,1767485441216,-1000.0,0.00014247,2]
[400386168,1767485441225,-1000.0,0.00014247,2]
[400386170,1767485441235,-1000.0,0.00014247,2]
[400386172,1767485441244,-1000.0,0.00014247,2]
[400386174,1767485441254,-1000.0,0.00014247,2]
[400386176,1767485441263,-1000.0,0.00014247,2]
[400386178,1767485441272,-1000.0,0.00014247,2]
[400386180,1767485441282,-1000.0,0.00014247,2]
[400386182,1767485441291,-1000.0,0.00014247,2]
[400386183,1767485441300,-1000.0,0.00014247,2]
[400386185,1767485441310,-658.30783494,0.00014247,2]
[400386187,1767485441319,-1000.0,0.00014247,2]
[400386189,1767485441328,-1000.0,0.00014247,2]
[400386191,1767485441337,-1000.0,0.00014247,2]
[400386193,1767485441347,-794.89074662,0.00014247,2]
[400386195,1767485441357,-1000.0,0.00014247,2]
[400386197,1767485441366,-1000.0,0.00014247,2]
[400386199,1767485441376,-511.86637987,0.00014247,2]
[400386201,1767485441385,-1000.0,0.00014247,2]
[400386203,1767485441394,-1000.0,0.00014247,2]
[400386205,1767485441403,-506.25682101,0.00014247,2]
[400386207,1767485441413,-1000.0,0.00014247,2]
[400386209,1767485441423,-1000.0,0.00014247,2]
[400386210,1767485441434,-1000.0,0.00014247,2]
[400386212,1767485441444,-1000.0,0.00014247,2]
[400386214,1767485441455,-412.17465389,0.00014247,2]
[400386216,1767485441464,-1000.0,0.00014247,2]
[400386218,1767485441474,-1000.0,0.00014247,2]
[400386220,1767485441483,-1000.0,0.00014247,2]
[400386222,1767485441492,-1000.0,0.00014247,2]
[400386224,1767485441502,-1000.0,0.00014247,2]
[400386226,1767485441511,-1000.0,0.00014247,2]
[400386228,1767485441520,-1000.0,0.00014247,2]
[400386230,1767485441529,-366.45646788,0.00014247,2]
[400386232,1767485441538,-1000.0,0.00014247,2]
[400386234,1767485441547,-1000.0,0.00014247,2]
[400386236,1767485441557,-1000.0,0.00014247,2]
[400386238,1767485441567,-1000.0,0.00014247,2]
[400386240,1767485441576,-1000.0,0.00014247,2]
[400386242,1767485441586,-1000.0,0.00014247,2]
[400386244,1767485441595,-1000.0,0.00014247,2]
[400386246,1767485441604,-1000.0,0.00014247,2]
[400386248,1767485441613,-1000.0,0.00014247,2]
[400386250,1767485441624,-1000.0,0.00014247,2]
[400386252,1767485441634,-1000.0,0.00014247,2]
[400386254,1767485441643,-502.7351881,0.00014247,2]
[400386256,1767485441652,-868.65124002,0.00014247,2]
[400386257,1767485441663,-1000.0,0.00014247,2]
[400386259,1767485441672,-1000.0,0.00014247,2]
[400386261,1767485441685,-1000.0,0.00014247,2]
[400386263,1767485441694,-500.0,0.00014247,2]
[400386265,1767485441704,-1000.0,0.00014247,2]
[400386267,1767485441714,-272.8580354,0.00014263,2]
[400386269,1767485441723,-1500.0,0.00014368,2]
[400386271,1767485441732,-1500.0,0.00014368,2]
[400386273,1767485441742,-1500.0,0.00014368,2]
[400386275,1767485441751,-1500.0,0.00014368,2]
[400386277,1767485441761,-1500.0,0.00014368,2]
[400386279,1767485441771,-1500.0,0.00014368,2]
[400386281,1767485441780,-1500.0,0.00014368,2]
[400386283,1767485441789,-1500.0,0.00014368,2]
[400386285,1767485441798,-843.79480379,0.00014368,2]
[400386287,1767485441808,-1318.87701711,0.00014368,2]
[400386289,1767485441817,-1500.0,0.00014368,2]
[400386290,1767485441826,-1500.0,0.00014368,2]
[400386292,1767485441836,-1500.0,0.00014368,2]
[400386294,1767485441846,-1500.0,0.00014368,2]
[400386296,1767485441855,-1041.66666667,0.00014438,2]
[400386298,1767485441865,-420.0,0.0001444,2]
[400386300,1767485441874,-1680.0,0.00014487,2]
[400386302,1767485441884,-2480.64123122,0.00014504,2]
[400386304,1767485441893,-14835.9546532,0.00014572,2]
[400386306,1767485441902,-1416.98523707,0.00014636,2]
[400386308,1767485441912,-851.67643969,0.00014691,2]
[400386310,1767485441922,-500.0,0.00014692,2]
[400386312,1767485441931,-167.034,0.00014692,2]
[400386314,1767485441942,-206.34098665,0.00014735,2]
[400386316,1767485441952,-200.0,0.00014735,2]
[400386318,1767485441961,-273.85736434,0.00014736,2]
[400386320,1767485441971,-90512.47286513,0.00014736,2]
[400386335,1767485442122,-8973.6,0.00014736,2]
[400386337,1767485442136,-513.92713487,0.00014736,2]
[400386339,1767485442145,-515.07433009,0.00014736,2]
[400386663,1767485445654,-13018.84619154,0.00014736,2]
[400386803,1767485447001,-17576.07947837,0.00014736,2]
[400386805,1767485447011,-2773.56790519,0.00014736,2]
[400386807,1767485447020,-2145.0,0.00014772,2]
[400386809,1767485447029,-173.776,0.00014772,2]
[400386811,1767485447040,-720.0,0.00014776,2]
[400386813,1767485447049,-1464.65372712,0.00014795,2]
[400386815,1767485447061,-872.39691431,0.00014795,2]
[400386817,1767485447071,-1183.23648368,0.00014795,2]
[400386819,1767485447081,-509.61748521,0.00014795,2]
[400386821,1767485447090,-500.0,0.00014795,2]
[400386822,1767485447101,-1500.0,0.00014795,2]
[400386824,1767485447111,-1500.0,0.00014795,2]
[400386826,1767485447120,-1500.0,0.00014795,2]
[400386828,1767485447132,-1501.03855796,0.00014795,2]
[400386830,1767485447141,-1136.69571136,0.00014795,2]
[400386832,1767485447151,-1500.0,0.00014795,2]
[400386834,1767485447160,-1190.08849558,0.00014795,2]
[400386836,1767485447169,-1500.0,0.00014795,2]
[400386838,1767485447179,-1000.0,0.00014795,2]
[400386839,1767485447189,-1500.0,0.00014795,2]
[400386840,1767485447199,-1500.0,0.00014795,2]
[400386841,1767485447208,-1500.0,0.00014795,2]
[400386842,1767485447217,-1500.0,0.00014795,2]
[400386843,1767485447227,-500.0,0.00014795,2]
[400386844,1767485447237,-1500.0,0.00014795,2]
[400386845,1767485447247,-1082.96523397,0.00014795,2]
[400386846,1767485447256,-1422.85192268,0.00014795,2]
[400386847,1767485447266,-1500.0,0.00014795,2]
[400386848,1767485447275,-1416.71603506,0.00014795,2]
[400386849,1767485447284,-926.32554403,0.00014795,2]
[400386850,1767485447294,-1500.0,0.00014795,2]
[400386851,1767485447303,-1500.0,0.00014795,2]
[400386852,1767485447313,-578.66112051,0.00014795,2]
[400386853,1767485447324,-1500.0,0.00014795,2]
[400386854,1767485447334,-788.86876245,0.00014795,2]
[400386856,1767485447344,-1500.0,0.00014795,2]
[400386858,1767485447354,-1500.0,0.00014795,2]
[400386860,1767485447363,-1639.28203437,0.00014795,2]
[400386862,1767485447373,-1500.0,0.00014795,2]
[400386864,1767485447382,-1500.0,0.00014795,2]
[400386866,1767485447391,-1500.0,0.00014795,2]
[400386867,1767485447401,-516.82099752,0.00014795,2]
[400386869,1767485447411,-605.86243783,0.00014795,2]
[400386871,1767485447421,-1500.0,0.00014795,2]
[400386873,1767485447431,-1500.0,0.00014795,2]
[400386876,1767485447443,-642.5109954,0.00014795,2]
[400386877,1767485447453,-1500.0,0.00014795,2]
[400386879,1767485447463,-1500.0,0.00014795,2]
[400386881,1767485447472,-1500.0,0.00014795,2]
[400386883,1767485447482,-1500.0,0.00014795,2]
[400386885,1767485447492,-1500.0,0.00014795,2]
[400386887,1767485447501,-1500.0,0.00014795,2]
[400386889,1767485447511,-1500.0,0.00014795,2]
[400386891,1767485447520,-1500.0,0.00014795,2]
[400386893,1767485447530,-1500.0,0.00014795,2]
[400386895,1767485447539,-151.0,0.000148,2]
[400386897,1767485447551,-522.10811605,0.00014989,2]
[400386899,1767485447560,-500.0,0.00015,2]
[400386901,1767485447569,-587.46816348,0.00015025,5]
[400386903,1767485447578,-292.159517,0.00015068,2]
[400386905,1767485447588,-1842.282,0.00015068,2]
[400386907,1767485447597,-151.0,0.000151,2]
[400386909,1767485447607,-32261.07,0.00015284,2]
[400386911,1767485447616,-189.91526602,0.00015291,2]
[400386913,1767485447625,-500.0,0.00015342,2]
[400386915,1767485447635,-151.0,0.000155,2]
[400386917,1767485447644,-776.0,0.000155,2]
[400386919,1767485447654,-1370.63372365,0.0001567,2]
[400386921,1767485447663,-4040.38199754,0.00015678,2]
[400386923,1767485447675,-5725.4704893,0.00015693,2]
[400386925,1767485447684,-151.0,0.000158,2]
[400386927,1767485447694,-587.0,0.00015833,2]
[400386929,1767485447705,-346.0,0.00015891,2]
[400386931,1767485447715,-346.0,0.00015891,2]
[400386933,1767485447724,-346.0,0.00015891,2]
[400386935,1767485447733,-163.0,0.00015891,2]
[400386936,1767485447742,-346.0,0.00015891,2]
[400386938,1767485447753,-203.40254644,0.00015891,2]
[400386940,1767485447762,-346.0,0.00015891,2]
[400386942,1767485447771,-152.0,0.00015891,2]
[400386944,1767485447781,-336.0,0.00015891,2]
[400386946,1767485447790,-346.0,0.00015891,2]
[400386948,1767485447799,-152.0,0.00015891,2]
[400386950,1767485447808,-166.0,0.00015891,2]
[400386952,1767485447817,-155.0,0.00015891,2]
[400386954,1767485447827,-152.0,0.00015891,2]
[400386956,1767485447835,-346.0,0.00015891,2]
[400386957,1767485447845,-166.0,0.00015891,2]
[400386959,1767485447855,-152.0,0.00015891,2]
[400386961,1767485447864,-166.0,0.00015891,2]
[400386963,1767485447873,-336.0,0.00015891,2]
[400386965,1767485447883,-299.35703962,0.00015891,2]
[400386967,1767485447892,-155.0,0.00015891,2]
[400386969,1767485447902,-346.0,0.00015891,2]
[400386971,1767485447911,-166.0,0.00015891,2]
[400386973,1767485447921,-155.0,0.00015891,2]
[400386975,1767485447930,-346.0,0.00015891,2]
[400386977,1767485447941,-336.0,0.00015891,2]
[400386979,1767485447951,-166.0,0.00015891,2]
[400386981,1767485447962,-346.0,0.00015891,2]
[400386983,1767485447971,-155.0,0.00015891,2]
[400386985,1767485447980,-336.0,0.00015891,2]
[400386987,1767485447990,-166.0,0.00015891,2]
[400386989,1767485447999,-346.0,0.00015891,2]
[400386991,1767485448009,-155.0,0.00015891,2]
[400386992,1767485448018,-166.0,0.00015891,2]
[400386994,1767485448027,-336.0,0.00015891,2]
[400386996,1767485448037,-346.0,0.00015891,2]
[400386998,1767485448051,-155.0,0.00015891,2]
[400387000,1767485448062,-172.0,0.00015891,2]
[400387002,1767485448072,-336.0,0.00015891,2]
[400387004,1767485448083,-346.0,0.00015891,2]
[400387006,1767485448093,-155.0,0.00015891,2]
[400387008,1767485448104,-336.0,0.00015891,2]
[400387010,1767485448115,-346.0,0.00015891,2]
[400387012,1767485448125,-155.0,0.00015891,2]
[400387014,1767485448135,-336.0,0.00015891,2]
[400387028,1767485448271,-346.0,0.00015891,2]
[400387030,1767485448282,-155.0,0.00015891,2]
[400387032,1767485448292,-336.0,0.00015891,2]
[400387034,1767485448302,-346.0,0.00015891,2]
[400387036,1767485448311,-155.0,0.00015891,2]
[400387038,1767485448322,-346.0,0.00015891,2]
[400387040,1767485448331,-155.0,0.00015891,2]
[400387042,1767485448340,-336.0,0.00015891,2]
[400387044,1767485448350,-346.0,0.00015891,2]
[400387046,1767485448359,-155.0,0.00015891,2]
[400387048,1767485448370,-336.0,0.00015891,2]
[400387050,1767485448379,-346.0,0.00015891,2]
[400387051,1767485448389,-155.0,0.00015891,2]
[400387053,1767485448398,-151.0,0.00015891,2]
[400387055,1767485448407,-346.0,0.00015891,2]
[400387057,1767485448417,-336.0,0.00015891,2]
[400387059,1767485448426,-155.0,0.00015891,2]
[400387061,1767485448436,-151.0,0.00015891,2]
[400387063,1767485448446,-336.0,0.00015891,2]
[400387065,1767485448455,-346.0,0.00015891,2]
[400387067,1767485448465,-155.0,0.00015891,2]
[400387069,1767485448476,-151.0,0.00015891,2]
[400387071,1767485448485,-336.0,0.00015891,2]
[400387073,1767485448494,-155.0,0.00015891,2]
[400387075,1767485448504,-346.0,0.00015891,2]
[400387077,1767485448513,-151.0,0.00015891,2]
[400387079,1767485448523,-336.0,0.00015891,2]
[400387081,1767485448533,-155.0,0.00015891,2]
[400387083,1767485448542,-346.0,0.00015891,2]
[400387084,1767485448551,-151.0,0.00015891,2]
[400387086,1767485448561,-336.0,0.00015891,2]
[400387088,1767485448571,-155.0,0.00015891,2]
[400387090,1767485448581,-346.0,0.00015891,2]
[400387092,1767485448591,-151.0,0.00015891,2]
[400387094,1767485448601,-155.0,0.00015891,2]
[400387096,1767485448611,-346.0,0.00015891,2]
[400387098,1767485448620,-336.0,0.00015891,2]
[400387100,1767485448630,-155.0,0.00015891,2]
[400387102,1767485448639,-151.0,0.00015891,2]
[400387104,1767485448649,-346.0,0.00015891,2]
[400387106,1767485448658,-336.0,0.00015891,2]
[400387108,1767485448667,-155.0,0.00015891,2]
[400387110,1767485448677,-336.0,0.00015891,2]
[400387112,1767485448687,-346.0,0.00015891,2]
[400387113,1767485448696,-336.0,0.00015891,2]
[400387115,1767485448705,-346.0,0.00015891,2]
[400387117,1767485448715,-155.0,0.00015891,2]
[400387119,1767485448725,-336.0,0.00015891,2]
[400387121,1767485448734,-346.0,0.00015891,2]
[400387123,1767485448745,-155.0,0.00015891,2]
[400387125,1767485448755,-151.0,0.00015891,2]
[400387127,1767485448764,-336.0,0.00015891,2]
[400387129,1767485448775,-346.0,0.00015891,2]
[400387131,1767485448785,-155.0,0.00015891,2]
[400387133,1767485448794,-151.0,0.00015891,2]
[400387135,1767485448804,-336.0,0.00015891,2]
[400387137,1767485448813,-346.0,0.00015891,2]
[400387139,1767485448823,-336.0,0.00015891,2]
[400387141,1767485448834,-155.0,0.00015891,2]
[400387144,1767485448844,-184.30374693,0.00015891,2]
[400387145,1767485448854,-346.0,0.00015891,2]
[400387147,1767485448863,-160.49111248,0.00015891,2]
[400387149,1767485448872,-336.0,0.00015891,2]
[400387151,1767485448881,-346.0,0.00015891,2]
[400387153,1767485448891,-336.0,0.00015891,2]
[400387155,1767485448900,-346.0,0.00015891,2]
[400387157,1767485448910,-336.0,0.00015891,2]
[400387159,1767485448919,-346.0,0.00015891,2]
[400387161,1767485448929,-336.0,0.00015891,2]
[400387163,1767485448939,-346.0,0.00015891,2]
[400387165,1767485448948,-336.0,0.00015891,2]
[400387167,1767485448958,-346.0,0.00015891,2]
[400387169,1767485448967,-354.37772436,0.00015891,2]
[400387171,1767485448977,-346.0,0.00015891,2]
[400387173,1767485448987,-346.0,0.00015891,2]
[400387175,1767485448996,-178.25609234,0.00015891,2]
[400387177,1767485449006,-2351.0,0.00015935,2]
[400387179,1767485449015,-500.0,0.00016,2]
[400387181,1767485449025,-151.0,0.00016,2]
[400387183,1767485449035,-151.0,0.00016,2]
[400387185,1767485449045,-151.0,0.000161,2]
[400387187,1767485449057,-1277.5251472,0.00016138,2]
[400387189,1767485449067,-864.0,0.00016254,2]
[400387191,1767485449078,-53587.6607398,0.00016336,2]
[400387447,1767485517191,165.47,9.997e-05,2]
[400387448,1767485517574,189.11,0.00010368,2]
[400387449,1767485517959,212.75,0.00010738,2]
[400387450,1767485518715,236.39,0.00011108,2]
[400387458,1767485611177,200.0,0.00022023,120]
[400387463,1767485670666,200.0,0.00029037,120]
[400387464,1767485731218,200.0,0.00028424,120]
[400387467,1767485970512,200.0,0.0002844,120]
[400387468,1767486106465,300.0,0.00013168,120]
[400387542,1767486631765,-807.42,0.00012329,2]
[400387544,1767486631775,-438.55784493,0.00012329,2]
[400387546,1767486631785,-594.0,0.00012329,2]
[400387549,1767486631796,-106.25751347,0.00013068,2]
[400387552,1767486631808,-703.71822053,0.00013068,2]
[400387555,1767486631830,-390.024266,0.00013068,2]
[400387557,1767486631841,-300.0,0.00013069,2]
[400387558,1767486631851,-300.0,0.00013069,2]
[400387559,1767486631861,-1200.0,0.00013069,2]
[400387560,1767486631870,-412.025734,0.0001307,2]
[400387827,1767486645972,-87.974266,0.0001307,2]
[400387828,1767486645983,-573.31541429,0.0001307,2]
[400387829,1767486645992,-168.94354611,0.0001307,2]
[400387830,1767486646003,-500.0,0.0001307,2]
[400387831,1767486646013,-83.0543918,0.0001307,2]
[400387832,1767486646030,-416.9456082,0.0001307,2]
[400387833,1767486646040,-358.80947209,0.0001307,2]
[400387834,1767486646050,-788.48586897,0.00013173,2]
[400387835,1767486646060,-500.0,0.00013273,2]
[400387836,1767486646070,-500.0,0.00013273,2]
[400387837,1767486646079,-500.0,0.00013273,2]
[400387838,1767486646089,-500.0,0.00013273,2]
[400387839,1767486646099,-500.0,0.00013273,2]
[400387840,1767486646108,-500.0,0.00013273,2]
[400387841,1767486646117,-500.0,0.00013273,2]
[400387842,1767486646127,-500.0,0.00013273,2]
[400387843,1767486646137,-500.0,0.00013273,2]
[400387844,1767486646146,-500.0,0.00013273,2]
[400387845,1767486646155,-500.0,0.00013273,2]
[400387846,1767486646164,-500.0,0.00013273,2]
[400387847,1767486646174,-500.0,0.00013273,2]
[400387848,1767486646183,-500.0,0.00013273,2]
[400387849,1767486646193,-500.0,0.00013273,2]
[400387850,1767486646202,-500.0,0.00013273,2]
[400387851,1767486646211,-500.0,0.00013273,2]
[400387852,1767486646220,-500.0,0.00013273,2]
[400387853,1767486646229,-500.0,0.00013698,2]
[400387854,1767486646239,-500.0,0.00013698,2]
[400387855,1767486646248,-500.0,0.00013698,2]
[400387856,1767486646257,-586.79944433,0.00013698,2]
[400387857,1767486646267,-500.0,0.00013698,2]
[400387858,1767486646276,-500.0,0.00013698,2]
[400387859,1767486646286,-429.40593815,0.00013698,2]
[400387860,1767486646295,-500.0,0.00013698,2]
[400387861,1767486646305,-500.0,0.00013698,2]
[400387862,1767486646314,-500.0,0.00013698,2]
[400387863,1767486646440,-500.0,0.00013698,2]
[400387864,1767486646449,-283.34900001,0.00013698,2]
[400387865,1767486646459,-500.0,0.00013699,2]
[400387866,1767486646469,-198.61377402,0.00013821,2]
[400387867,1767486646479,-500.0,0.00013821,2]
[400387868,1767486646489,-1000.0,0.00013821,2]
[400387869,1767486646499,-1000.0,0.00013821,2]
[400387870,1767486646510,-1000.0,0.00013821,2]
[400387871,1767486646519,-1000.0,0.00013821,2]
[400387872,1767486646529,-500.0,0.00013821,2]
[400387873,1767486646540,-500.0,0.00013821,2]
[400387874,1767486646550,-503.81920107,0.00013821,2]
[400387875,1767486646559,-1000.0,0.00013821,2]
[400387876,1767486646570,-1000.0,0.00013821,2]
[400387877,1767486646579,-1000.0,0.00013821,2]
[400387878,1767486646589,-500.0,0.00013821,2]
[400387879,1767486646599,-250.79014339,0.00013821,2]
[400387880,1767486646608,-311.76362461,0.00013821,2]
[400387881,1767486696541,158.9188175,0.00030137,120]
[400387882,1767486709711,168.37,0.00010163,2]
[400387883,1767486710096,189.41,0.00010526,2]
[400387884,1767486710503,210.46,0.00010889,2]
[400387885,1767486766509,242.77,0.0001,2]
[400387902,1767487728921,152.75240116,0.00025932,120]
[400387903,1767487730832,229.12860175,0.00025932,120]
[400387946,1767487831864,-807.42,0.00012329,2]
[400387947,1767487831875,-445.62417331,0.00012329,2]
[400387948,1767487831885,-594.0,0.00012329,2]
[400387949,1767487831894,-1583.62441926,0.00012869,2]
[400387950,1767487831904,-456.4,0.0001287,2]
[400387951,1767487831914,-6667.26566422,0.000129,2]
[400387952,1767487831927,-211.0,0.00012964,2]
[400387953,1767487831937,-300.0,0.00012964,2]
[400387954,1767487831946,-298.0,0.00012964,2]
[400387955,1767487831955,-1200.0,0.00012964,2]
[400387956,1767487831965,-1200.0,0.00012965,2]
[400387957,1767487831975,-500.0,0.00012966,2]
[400387958,1767487831985,-350.06173259,0.00012966,2]
[400387959,1767487831995,-687.7673046,0.00012966,2]
[400387960,1767487832004,-687.7673046,0.00012966,2]
[400387961,1767487832014,-687.7673046,0.00012966,2]
[400387962,1767487832024,-500.0,0.00012966,2]
[400387963,1767487832034,-687.7673046,0.00012966,2]
[400387964,1767487832043,-500.0,0.00012966,2]
[400387965,1767487832053,-558.24718287,0.00012966,2]
[400387966,1767487832062,-687.7673046,0.00012966,2]
[400387967,1767487832072,-687.7673046,0.00012966,2]
[400387968,1767487832081,-687.7673046,0.00012966,2]
[400387969,1767487832091,-687.7673046,0.00012966,2]
[400387970,1767487832103,-687.7673046,0.00012966,2]
[400387971,1767487832112,-687.7673046,0.00012966,2]
[400387972,1767487832122,-687.7673046,0.00012966,2]
[400387973,1767487832132,-687.7673046,0.00012966,2]
[400387974,1767487832143,-687.7673046,0.00012966,2]
[400387975,1767487832152,-687.7673046,0.00012966,2]
[400387976,1767487832292,-687.7673046,0.00012966,2]
[400387977,1767487832302,-695.85468694,0.00012966,2]
[400387978,1767487832312,-695.85468694,0.00012966,2]
[400387979,1767487832322,-695.85468694,0.00012966,2]
[400387980,1767487832331,-695.85468694,0.00012966,2]
[400387981,1767487832340,-695.85468694,0.00012966,2]
[400387982,1767487832350,-695.85468694,0.00012966,2]
[400387983,1767487832360,-371.20697706,0.00012966,2]
[400387984,1767487832369,-16280.94577744,0.00012967,2]
[400387985,1767487832385,-31015.16984577,0.00012967,2]
[400387986,1767487832396,-551.15446361,0.00012967,2]
[400388000,1767487837991,-829.03730397,0.00012967,2]
[400388001,1767487838003,-2714.43362457,0.00012967,2]
[400388002,1767487838015,-291.300155,0.00012967,2]
[400388003,1767487838040,-832.12920319,0.00012967,2]
[400388004,1767487838055,-2694.248208,0.00012967,2]
[400388097,1767487902064,150.15,9.394e-05,2]
[400388098,1767487902478,171.6,9.742e-05,2]
[400388099,1767487902900,193.05,0.0001009,2]
[400388100,1767487903315,214.5,0.00010438,2]
[400388105,1767488047562,200.0,0.00012,2]
[400388107,1767488230249,226.30113565,0.00024865,120]
[400388108,1767488409557,160.0,0.000301,120]
[400388110,1767488461482,160.0,0.000301,120]
[400388111,1767488471525,156.0,0.000301,120]
[400388113,1767488696120,22837.13931727,0.00030137,120]
[400388122,1767488780686,177.85,0.00030137,120]
[400388182,1767489032104,-355.40230527,0.00012537,2]
[400388183,1767489032124,-651.24859142,0.00012537,2]
[400388184,1767489032134,-2473.269741,0.00012664,2]
[400388185,1767489032144,-599.0,0.00012664,2]
[400388186,1767489032154,-186.29158513,0.00012765,2]
[400388187,1767489032163,-446.73617239,0.00012774,2]
[400388188,1767489032173,-1505.10846642,0.000128,2]
[400388189,1767489032183,-1200.0,0.00012862,2]
[400388190,1767489032192,-300.0,0.00012863,2]
[400388192,1767489032202,-500.0,0.00012864,2]
[400388193,1767489032212,-342.71578019,0.00012864,2]
[400388194,1767489032222,-500.0,0.00012864,2]
[400388195,1767489032232,-500.0,0.00012864,2]
[400388196,1767489032242,-500.0,0.00012864,2]
[400388197,1767489032252,-500.0,0.00012864,2]
[400388198,1767489032261,-500.0,0.00012864,2]
[400388199,1767489032271,-421.06168475,0.00012864,2]
[400388200,1767489032281,-500.0,0.00012864,2]
[400388201,1767489032290,-500.0,0.00012864,2]
[400388202,1767489032300,-500.0,0.00012864,2]
[400388203,1767489032310,-500.0,0.00012864,2]
[400388204,1767489032320,-226.73631449,0.00012864,2]
[400388205,1767489032329,-5833.85745614,0.000129,2]
[400388206,1767489032339,-1748.8031941,0.00012966,2]
[400388207,1767489032348,-10644.7501215,0.00012966,2]
[400388208,1767489032358,-3912.88617613,0.00012967,2]
[400388209,1767489032370,-7026.66134278,0.00012967,2]
[400388218,1767489038127,-934.49182444,0.00012967,2]
[400388219,1767489038139,-2892.56291802,0.00012967,2]
[400388220,1767489038238,-50338.61256548,0.00012967,2]
[400388221,1767489038251,-12942.11470087,0.00012967,2]
[400388251,1767489040366,-362.97355363,0.00012966,2]
[400388253,1767489040376,-500.0,0.00012966,2]
[400388254,1767489040386,-716.76187719,0.00012966,2]
[400388255,1767489040396,-716.76187719,0.00012966,2]
[400388256,1767489040406,-500.0,0.00012966,2]
[400388257,1767489040418,-716.76187719,0.00012966,2]
[400388258,1767489040427,-111.04667364,0.00012966,2]
[400388259,1767489040451,-575.25626439,0.00012966,2]
[400388275,1767489044625,-30.45893916,0.00012966,2]
[400388276,1767489044635,-716.76187719,0.00012966,2]
[400388277,1767489044644,-259.43008034,0.00012966,2]
[400388278,1767489044656,-457.33179685,0.00012966,2]
[400388279,1767489044666,-500.0,0.00012966,2]
[400388280,1767489044675,-716.76187719,0.00012966,2]
[400388281,1767489044685,-496.59435137,0.00012966,2]
[400388282,1767489044695,-716.76187719,0.00012966,2]
[400388283,1767489044705,-716.76187719,0.00012966,2]
[400388284,1767489044714,-716.76187719,0.00012966,2]
[400388285,1767489044723,-716.76187719,0.00012966,2]
[400388286,1767489044733,-716.76187719,0.00012966,2]
[400388287,1767489044743,-716.76187719,0.00012966,2]
[400388288,1767489044752,-716.76187719,0.00012966,2]
[400388289,1767489044761,-716.76187719,0.00012966,2]
[400388290,1767489044771,-716.76187719,0.00012966,2]
[400388291,1767489044780,-716.76187719,0.00012966,2]
[400388292,1767489044790,-5118.04923938,0.00012967,2]
[400388295,1767489046138,-41101.5040496,0.00012967,2]
[400388296,1767489046150,-500.0,0.00013273,2]
[400388297,1767489046159,-500.0,0.00013273,2]
[400388298,1767489046169,-500.0,0.00013273,2]
[400388299,1767489046178,-493.59848305,0.00013273,2]
[400388300,1767489046187,-1505.10846641,0.000133,2]
[400388301,1767489046197,-10958.55959697,0.00013699,2]
[400388302,1767489046274,-1216.13071263,0.00013699,2]
[400388303,1767489046284,-1296.291897,0.00013699,2]
[400388304,1767489046294,-1000.0,0.00013699,2]
[400388305,1767489046304,-300.788103,0.00013699,2]
[400388306,1767489046315,-1505.10846641,0.000138,2]
[400388307,1767489046326,-1000.0,0.00013821,2]
[400388308,1767489046336,-188.23637539,0.00013821,2]
[400388309,1767489046347,-3663.86444557,0.00013871,2]
[400388310,1767489086397,158.44,9.594e-05,2]
[400388311,1767489086780,178.24,9.937e-05,2]
[400388312,1767489087173,169.37835238,0.00010279,2]
[400388322,1767489668457,2368.0,0.00030137,120]